[Event "Titled Tuesday Blitz March 28 Late 2023"]
[White "aprendodemiserrores"]
[Black "Gold_Ocean"]
[WhiteElo "2287"]
[BlackElo "2627"]
[Result "0-1"]
[Round "01"]
[TimeControl "180+2"]
[Date "2023.03.28"]
[WhiteClock "0:00:15"]
[BlackClock "0:00:22"]

1. e4 {[%clk 0:02:54]}  c5 {[%clk 0:02:56]} 2. Nf3 {[%clk 0:02:52]}  d6 {[%clk 0:02:53]} 3. d4 {[%clk 0:02:51]}  cxd4 {[%clk 0:02:45]} 4. Nxd4 {[%clk 0:02:51]}  Nf6 {[%clk 0:02:44]} 5. Nc3 {[%clk 0:02:51]}  a6 {[%clk 0:02:37]} 6. Be3 {[%clk 0:02:51]}  e5 {[%clk 0:02:25]} 7. Nb3 {[%clk 0:02:50]}  Be6 {[%clk 0:02:21]} 8. h3 {[%clk 0:02:50]}  Be7 {[%clk 0:02:01]} 9. Qf3 {[%clk 0:02:50]}  O-O {[%clk 0:01:59]} 10. O-O-O {[%clk 0:02:49]}  Nbd7 {[%clk 0:01:58]} 11. g4 {[%clk 0:02:49]}  Rc8 {[%clk 0:01:56]} 12. Nd5 {[%clk 0:02:18]}  Bxd5 {[%clk 0:01:51]} 13. exd5 {[%clk 0:02:18]}  Qc7 {[%clk 0:01:51]} 14. Bd3 {[%clk 0:02:01]}  a5 {[%clk 0:01:38]} 15. Nd2 {[%clk 0:01:51]}  Nc5 {[%clk 0:01:26]} 16. Bxc5 {[%clk 0:01:28]}  Qxc5 {[%clk 0:01:27]} 17. g5 {[%clk 0:01:17]}  Nxd5 {[%clk 0:01:09]} 18. Nb3 {[%clk 0:01:16]}  Bxg5+ {[%clk 0:00:50]} 19. Kb1 {[%clk 0:01:14]}  Nc3+ {[%clk 0:00:47]} 20. bxc3 {[%clk 0:01:11]}  Qxc3 {[%clk 0:00:48]} 21. Qf5 {[%clk 0:00:57]}  g6 {[%clk 0:00:47]} 22. Qxg5 {[%clk 0:00:57]}  a4 {[%clk 0:00:48]} 23. Qd2 {[%clk 0:00:37]}  Qc6 {[%clk 0:00:42]} 24. Nc1 {[%clk 0:00:35]}  d5 {[%clk 0:00:40]} 25. Qb4 {[%clk 0:00:35]}  e4 {[%clk 0:00:38]} 26. Be2 {[%clk 0:00:27]}  Qxc2+ {[%clk 0:00:38]} 27. Ka1 {[%clk 0:00:27]}  Rfd8 {[%clk 0:00:38]} 28. Qb2 {[%clk 0:00:27]}  Qc5 {[%clk 0:00:36]} 29. Rd4 {[%clk 0:00:25]}  a3 {[%clk 0:00:37]} 30. Qb4 {[%clk 0:00:24]}  Qc2 {[%clk 0:00:34]} 31. Rhd1 {[%clk 0:00:22]}  Kg7 {[%clk 0:00:28]} 32. Qb3 {[%clk 0:00:21]}  Qxc1+ {[%clk 0:00:26]} 33. Rxc1 {[%clk 0:00:21]}  Rxc1+ {[%clk 0:00:27]} 34. Qb1 {[%clk 0:00:22]}  Rxb1+ {[%clk 0:00:27]} 35. Kxb1 {[%clk 0:00:22]}  Kf6 {[%clk 0:00:28]} 36. Kc2 {[%clk 0:00:21]}  Ke5 {[%clk 0:00:29]} 37. Rb4 {[%clk 0:00:21]}  d4 {[%clk 0:00:28]} 38. Rb5+ {[%clk 0:00:21]}  Kf4 {[%clk 0:00:28]} 39. Bc4 {[%clk 0:00:21]}  f5 {[%clk 0:00:28]} 40. Rxb7 {[%clk 0:00:21]}  Rc8 {[%clk 0:00:29]} 41. Kb3 {[%clk 0:00:21]}  Kf3 {[%clk 0:00:29]} 42. Rxh7 {[%clk 0:00:21]}  Kxf2 {[%clk 0:00:29]} 43. Rd7 {[%clk 0:00:21]}  d3 {[%clk 0:00:28]} 44. Bxd3 {[%clk 0:00:21]}  exd3 {[%clk 0:00:27]} 45. Rxd3 {[%clk 0:00:21]}  f4 {[%clk 0:00:27]} 46. Kxa3 {[%clk 0:00:21]}  f3 {[%clk 0:00:28]} 47. Kb4 {[%clk 0:00:21]}  Ke2 {[%clk 0:00:28]} 48. Rd6 {[%clk 0:00:21]}  f2 {[%clk 0:00:28]} 49. Re6+ {[%clk 0:00:21]}  Kd1 {[%clk 0:00:27]} 50. Rf6 {[%clk 0:00:21]}  Rc2 {[%clk 0:00:25]} 51. a4 {[%clk 0:00:20]}  Ke1 {[%clk 0:00:25]} 52. Kb3 {[%clk 0:00:17]}  Re2 {[%clk 0:00:23]} 53. a5 {[%clk 0:00:16]}  f1=Q {[%clk 0:00:21]} 54. Rxf1+ {[%clk 0:00:16]}  Kxf1 {[%clk 0:00:22]} 55. Kc4 {[%clk 0:00:15]}  Re3 {[%clk 0:00:21]} 56. Kd4 {[%clk 0:00:15]}  Rxh3 {[%clk 0:00:22]} 57. a6 {[%clk 0:00:15]}  Ra3 {[%clk 0:00:22]} 0-1


[Site "https://www.chess.com"]

[Event "Titled Tuesday Blitz March 28 Late 2023"]
[White "De Souza, Cristiano Gomes"]
[Black "Godzwon, Iwo"]
[WhiteFideId "2151758"]
[BlackFideId "21802483"]
[WhiteElo "2068"]
[BlackElo "2284"]
[Result "0-1"]
[Round "01"]
[TimeControl "180+2"]
[Date "2023.03.28"]
[WhiteClock "0:00:16"]
[BlackClock "0:01:00"]

1. d4 {[%clk 0:03:00]}  Nf6 {[%clk 0:02:58]} 2. c4 {[%clk 0:02:58]}  e6 {[%clk 0:02:58]} 3. Nf3 {[%clk 0:02:58]}  b6 {[%clk 0:02:58]} 4. g3 {[%clk 0:02:57]}  Bb7 {[%clk 0:02:58]} 5. Bg2 {[%clk 0:02:56]}  Bb4+ {[%clk 0:02:59]} 6. Bd2 {[%clk 0:02:56]}  c5 {[%clk 0:02:59]} 7. Bxb4 {[%clk 0:02:54]}  cxb4 {[%clk 0:03:00]} 8. O-O {[%clk 0:02:53]}  O-O {[%clk 0:03:00]} 9. a3 {[%clk 0:02:54]}  bxa3 {[%clk 0:02:59]} 10. Nxa3 {[%clk 0:02:54]}  d6 {[%clk 0:03:00]} 11. Nb5 {[%clk 0:02:53]}  a6 {[%clk 0:02:59]} 12. Nc3 {[%clk 0:02:50]}  Nbd7 {[%clk 0:03:00]} 13. Qd3 {[%clk 0:02:48]}  d5 {[%clk 0:02:57]} 14. b3 {[%clk 0:02:46]}  Ne4 {[%clk 0:02:51]} 15. Rfc1 {[%clk 0:02:44]}  Rc8 {[%clk 0:02:48]} 16. cxd5 {[%clk 0:02:37]}  exd5 {[%clk 0:02:44]} 17. Nd2 {[%clk 0:02:33]}  Ndf6 {[%clk 0:02:33]} 18. Ndxe4 {[%clk 0:02:32]}  dxe4 {[%clk 0:02:32]} 19. Nxe4 {[%clk 0:02:30]}  Rxc1+ {[%clk 0:02:29]} 20. Rxc1 {[%clk 0:02:28]}  Nd5 {[%clk 0:02:28]} 21. h4 {[%clk 0:02:21]}  h6 {[%clk 0:02:27]} 22. e3 {[%clk 0:02:08]}  Qd7 {[%clk 0:02:24]} 23. Nc3 {[%clk 0:02:06]}  Nb4 {[%clk 0:02:20]} 24. Qd2 {[%clk 0:02:05]}  Bxg2 {[%clk 0:02:18]} 25. Kxg2 {[%clk 0:02:05]}  Rc8 {[%clk 0:02:19]} 26. Ne2 {[%clk 0:01:58]}  Rxc1 {[%clk 0:02:11]} 27. Qxc1 {[%clk 0:01:56]}  Qd5+ {[%clk 0:02:12]} 28. Kg1 {[%clk 0:01:49]}  Qxb3 {[%clk 0:02:12]} 29. Qc8+ {[%clk 0:01:46]}  Kh7 {[%clk 0:02:13]} 30. Qf5+ {[%clk 0:01:45]}  g6 {[%clk 0:02:13]} 31. Qf3 {[%clk 0:01:37]}  Nd3 {[%clk 0:02:08]} 32. d5 {[%clk 0:01:29]}  Kg7 {[%clk 0:01:57]} 33. Nd4 {[%clk 0:01:23]}  Qb1+ {[%clk 0:01:20]} 34. Kh2 {[%clk 0:01:21]}  Qf1 {[%clk 0:01:18]} 35. d6 {[%clk 0:01:02]}  Ne1 {[%clk 0:01:16]} 36. Qb7 {[%clk 0:00:26]}  Qxf2+ {[%clk 0:01:14]} 37. Kh1 {[%clk 0:00:26]}  Qxe3 {[%clk 0:01:05]} 38. Qxb6 {[%clk 0:00:18]}  Qe4+ {[%clk 0:01:00]} 39. Kg1 {[%clk 0:00:16]}  Qg2# {[%clk 0:01:00]} 0-1


[Site "https://www.chess.com"]

[Event "Titled Tuesday Blitz March 28 Late 2023"]
[White "Freitag, Manfred"]
[Black "Coelho, Ramyres Santana"]
[WhiteFideId "1602004"]
[BlackFideId "2120690"]
[WhiteElo "2275"]
[BlackElo "1888"]
[Result "1/2-1/2"]
[Round "01"]
[TimeControl "180+2"]
[Date "2023.03.28"]
[WhiteClock "0:00:37"]
[BlackClock "0:00:26"]

1. e4 {[%clk 0:03:00]}  c5 {[%clk 0:02:59]} 2. Nf3 {[%clk 0:03:00]}  d6 {[%clk 0:02:55]} 3. d4 {[%clk 0:03:00]}  cxd4 {[%clk 0:02:51]} 4. Nxd4 {[%clk 0:03:00]}  Nf6 {[%clk 0:02:52]} 5. Nc3 {[%clk 0:03:00]}  a6 {[%clk 0:02:52]} 6. Be2 {[%clk 0:02:59]}  e6 {[%clk 0:02:53]} 7. Be3 {[%clk 0:02:57]}  b5 {[%clk 0:02:53]} 8. a3 {[%clk 0:02:54]}  Bb7 {[%clk 0:02:53]} 9. Bd3 {[%clk 0:02:54]}  Nbd7 {[%clk 0:02:53]} 10. O-O {[%clk 0:02:54]}  Rc8 {[%clk 0:02:54]} 11. f4 {[%clk 0:02:54]}  Nc5 {[%clk 0:02:53]} 12. Qf3 {[%clk 0:02:53]}  Nxd3 {[%clk 0:02:53]} 13. cxd3 {[%clk 0:02:53]}  Be7 {[%clk 0:02:54]} 14. Qg3 {[%clk 0:02:41]}  O-O {[%clk 0:02:52]} 15. f5 {[%clk 0:02:41]}  e5 {[%clk 0:02:46]} 16. Nde2 {[%clk 0:02:37]}  Kh8 {[%clk 0:02:44]} 17. Bg5 {[%clk 0:02:27]}  h6 {[%clk 0:02:43]} 18. Qh4 {[%clk 0:02:26]}  Ng8 {[%clk 0:02:31]} 19. Bxe7 {[%clk 0:02:25]}  Qxe7 {[%clk 0:02:31]} 20. Qxe7 {[%clk 0:02:20]}  Nxe7 {[%clk 0:02:32]} 21. f6 {[%clk 0:02:21]}  Ng6 {[%clk 0:02:16]} 22. fxg7+ {[%clk 0:02:17]}  Kxg7 {[%clk 0:02:17]} 23. Rad1 {[%clk 0:02:16]}  Ne7 {[%clk 0:02:01]} 24. Ng3 {[%clk 0:02:14]}  Kg6 {[%clk 0:01:57]} 25. Nf5 {[%clk 0:02:11]}  Nxf5 {[%clk 0:01:55]} 26. Rxf5 {[%clk 0:02:12]}  f6 {[%clk 0:01:55]} 27. Rdf1 {[%clk 0:02:08]}  Rcd8 {[%clk 0:01:50]} 28. R1f3 {[%clk 0:02:05]}  d5 {[%clk 0:01:46]} 29. Rg3+ {[%clk 0:02:05]}  Kh7 {[%clk 0:01:46]} 30. h3 {[%clk 0:01:53]}  dxe4 {[%clk 0:01:45]} 31. dxe4 {[%clk 0:01:53]}  Rd2 {[%clk 0:01:37]} 32. Rf2 {[%clk 0:01:52]}  Rxf2 {[%clk 0:01:34]} 33. Kxf2 {[%clk 0:01:53]}  f5 {[%clk 0:01:34]} 34. exf5 {[%clk 0:01:51]}  Rxf5+ {[%clk 0:01:35]} 35. Ke3 {[%clk 0:01:51]}  e4 {[%clk 0:01:24]} 36. Rg4 {[%clk 0:01:46]}  h5 {[%clk 0:01:20]} 37. Rf4 {[%clk 0:01:45]}  Rxf4 {[%clk 0:01:17]} 38. Kxf4 {[%clk 0:01:45]}  e3 {[%clk 0:01:17]} 39. g3 {[%clk 0:01:46]}  Bc8 {[%clk 0:01:08]} 40. h4 {[%clk 0:01:46]}  e2 {[%clk 0:01:04]} 41. Nxe2 {[%clk 0:01:45]}  a5 {[%clk 0:01:04]} 42. b4 {[%clk 0:01:44]}  axb4 {[%clk 0:01:03]} 43. axb4 {[%clk 0:01:45]}  Be6 {[%clk 0:01:01]} 44. Nd4 {[%clk 0:01:46]}  Bc4 {[%clk 0:01:01]} 45. Ke5 {[%clk 0:01:46]}  Kg6 {[%clk 0:01:00]} 46. Nf5 {[%clk 0:01:43]}  Be2 {[%clk 0:00:58]} 47. Nd6 {[%clk 0:01:40]}  Bd3 {[%clk 0:00:55]} 48. Nc8 {[%clk 0:01:31]}  Bc4 {[%clk 0:00:52]} 49. Ne7+ {[%clk 0:01:31]}  Kh6 {[%clk 0:00:52]} 50. Nf5+ {[%clk 0:01:29]}  Kg6 {[%clk 0:00:51]} 51. Nd6 {[%clk 0:01:30]}  Be2 {[%clk 0:00:50]} 52. Ke6 {[%clk 0:01:27]}  Bg4+ {[%clk 0:00:48]} 53. Kd5 {[%clk 0:01:27]}  Be2 {[%clk 0:00:47]} 54. Kc5 {[%clk 0:01:27]}  Kf6 {[%clk 0:00:46]} 55. Nxb5 {[%clk 0:01:27]}  Ke5 {[%clk 0:00:42]} 56. Nd4 {[%clk 0:01:26]}  Bd3 {[%clk 0:00:38]} 57. b5 {[%clk 0:01:19]}  Bxb5 {[%clk 0:00:27]} 58. Nxb5 {[%clk 0:01:19]}  Ke4 {[%clk 0:00:27]} 59. Nd6+ {[%clk 0:01:19]}  Kf3 {[%clk 0:00:26]} 60. Nf5 {[%clk 0:01:18]}  Kg4 {[%clk 0:00:26]} 61. Ng7 {[%clk 0:00:37]}  Kxg3 {[%clk 0:00:26]} 62. Nxh5+ {[%clk 0:00:37]}  Kxh4 {[%clk 0:00:26]} 1/2-1/2


[Site "https://www.chess.com"]

[Event "Titled Tuesday Blitz March 28 Late 2023"]
[White "Da Silva Junior, Sediney Mari"]
[Black "Fiorito, Francisco"]
[WhiteFideId "2132079"]
[BlackFideId "180165"]
[WhiteElo "1977"]
[BlackElo "2341"]
[Result "1-0"]
[Round "01"]
[TimeControl "180+2"]
[Date "2023.03.28"]
[WhiteClock "0:00:35"]
[BlackClock "0:00:02"]

1. e4 {[%clk 0:03:00]}  c5 {[%clk 0:02:59]} 2. c3 {[%clk 0:03:00]}  Nf6 {[%clk 0:02:59]} 3. e5 {[%clk 0:03:00]}  Nd5 {[%clk 0:02:59]} 4. d4 {[%clk 0:03:01]}  cxd4 {[%clk 0:02:59]} 5. Nf3 {[%clk 0:03:02]}  Nc6 {[%clk 0:02:58]} 6. cxd4 {[%clk 0:03:03]}  d6 {[%clk 0:02:58]} 7. Bc4 {[%clk 0:03:03]}  Nb6 {[%clk 0:02:58]} 8. Bb5 {[%clk 0:03:03]}  dxe5 {[%clk 0:02:59]} 9. Nxe5 {[%clk 0:03:03]}  Bd7 {[%clk 0:02:59]} 10. Nxd7 {[%clk 0:03:03]}  Qxd7 {[%clk 0:03:00]} 11. O-O {[%clk 0:03:03]}  e6 {[%clk 0:03:01]} 12. Nc3 {[%clk 0:03:03]}  Rd8 {[%clk 0:02:59]} 13. Be3 {[%clk 0:03:02]}  Be7 {[%clk 0:02:59]} 14. Qg4 {[%clk 0:03:02]}  O-O {[%clk 0:02:58]} 15. Rad1 {[%clk 0:03:03]}  f5 {[%clk 0:02:53]} 16. Qf3 {[%clk 0:02:57]}  f4 {[%clk 0:02:45]} 17. d5 {[%clk 0:02:40]}  Nxd5 {[%clk 0:02:09]} 18. Nxd5 {[%clk 0:02:20]}  exd5 {[%clk 0:02:10]} 19. Bxa7 {[%clk 0:02:17]}  Ra8 {[%clk 0:02:00]} 20. Rxd5 {[%clk 0:02:08]}  Qc7 {[%clk 0:01:58]} 21. Bd4 {[%clk 0:02:02]}  Nxd4 {[%clk 0:01:55]} 22. Rxd4 {[%clk 0:02:02]}  Bf6 {[%clk 0:01:50]} 23. Rxf4 {[%clk 0:01:57]}  Kh8 {[%clk 0:01:46]} 24. Bc4 {[%clk 0:01:56]}  Ra4 {[%clk 0:01:40]} 25. b3 {[%clk 0:01:53]}  Rxa2 {[%clk 0:01:39]} 26. h4 {[%clk 0:01:52]}  Ra5 {[%clk 0:01:35]} 27. h5 {[%clk 0:01:51]}  h6 {[%clk 0:01:32]} 28. Bd3 {[%clk 0:01:50]}  Re8 {[%clk 0:01:20]} 29. Qg4 {[%clk 0:01:05]}  Rg5 {[%clk 0:01:17]} 30. Qf3 {[%clk 0:00:58]}  Rd8 {[%clk 0:00:53]} 31. Bg6 {[%clk 0:00:57]}  Qe5 {[%clk 0:00:34]} 32. Re4 {[%clk 0:00:48]}  Qd6 {[%clk 0:00:29]} 33. Rfe1 {[%clk 0:00:45]}  Re5 {[%clk 0:00:22]} 34. Rxe5 {[%clk 0:00:39]}  Bxe5 {[%clk 0:00:23]} 35. Qxb7 {[%clk 0:00:37]}  Qd2 {[%clk 0:00:12]} 36. Qe4 {[%clk 0:00:36]}  Rd5 {[%clk 0:00:05]} 37. f4 {[%clk 0:00:36]}  Bd4+ {[%clk 0:00:02]} 38. Kh1 {[%clk 0:00:34]}  Rd8 {[%clk 0:00:01]} 39. Qe8+ {[%clk 0:00:34]}  Rxe8 {[%clk 0:00:02]} 40. Rxe8# {[%clk 0:00:35]} 1-0


[Site "https://www.chess.com"]

[Event "Titled Tuesday Blitz March 28 Late 2023"]
[White "Rose, Felix"]
[Black "Mihajlov, Sebastian"]
[WhiteFideId "5105722"]
[BlackFideId "1512110"]
[WhiteElo "2039"]
[BlackElo "2464"]
[Result "0-1"]
[Round "01"]
[TimeControl "180+2"]
[Date "2023.03.28"]
[WhiteClock "0:01:08"]
[BlackClock "0:00:52"]

1. d4 {[%clk 0:02:58]}  g6 {[%clk 0:03:00]} 2. e4 {[%clk 0:02:58]}  Bg7 {[%clk 0:03:01]} 3. Nf3 {[%clk 0:02:59]}  d6 {[%clk 0:03:02]} 4. Nc3 {[%clk 0:02:59]}  a6 {[%clk 0:03:02]} 5. a4 {[%clk 0:02:58]}  e6 {[%clk 0:02:55]} 6. h3 {[%clk 0:02:57]}  b6 {[%clk 0:02:53]} 7. Be2 {[%clk 0:02:53]}  Bb7 {[%clk 0:02:52]} 8. O-O {[%clk 0:02:53]}  Nd7 {[%clk 0:02:53]} 9. Re1 {[%clk 0:02:53]}  Ne7 {[%clk 0:02:50]} 10. Bf1 {[%clk 0:02:52]}  O-O {[%clk 0:02:50]} 11. Bg5 {[%clk 0:02:51]}  h6 {[%clk 0:02:50]} 12. Bd2 {[%clk 0:02:50]}  e5 {[%clk 0:02:41]} 13. dxe5 {[%clk 0:02:49]}  Nxe5 {[%clk 0:02:40]} 14. Nxe5 {[%clk 0:02:49]}  dxe5 {[%clk 0:02:41]} 15. Qc1 {[%clk 0:02:48]}  g5 {[%clk 0:02:38]} 16. Rd1 {[%clk 0:02:46]}  Qc8 {[%clk 0:02:36]} 17. Bc4 {[%clk 0:02:45]}  Kh8 {[%clk 0:02:27]} 18. h4 {[%clk 0:02:42]}  gxh4 {[%clk 0:01:53]} 19. Bxh6 {[%clk 0:02:39]}  Qg4 {[%clk 0:01:50]} 20. Rd3 {[%clk 0:02:32]}  Ng6 {[%clk 0:01:45]} 21. Bxg7+ {[%clk 0:02:17]}  Kxg7 {[%clk 0:01:45]} 22. Qd1 {[%clk 0:02:17]}  Qg5 {[%clk 0:01:42]} 23. Rd7 {[%clk 0:02:13]}  Nf4 {[%clk 0:01:37]} 24. Qf3 {[%clk 0:02:07]}  Bc8 {[%clk 0:01:31]} 25. Rxc7 {[%clk 0:02:01]}  Bg4 {[%clk 0:01:31]} 26. Qe3 {[%clk 0:01:55]}  h3 {[%clk 0:00:52]} 27. g3 {[%clk 0:01:51]}  h2+ {[%clk 0:00:52]} 28. Kh1 {[%clk 0:01:46]}  Qh5 {[%clk 0:00:52]} 29. gxf4 {[%clk 0:01:06]}  Bf3+ {[%clk 0:00:52]} 30. Qxf3 {[%clk 0:01:07]}  Qxf3+ {[%clk 0:00:53]} 31. Kxh2 {[%clk 0:01:08]}  Rh8+ {[%clk 0:00:52]} 0-1


[Site "https://www.chess.com"]

[Event "Titled Tuesday Blitz March 28 Late 2023"]
[White "Sourath Biswas"]
[Black "Schmidt, Harald"]
[WhiteFideId "35091484"]
[BlackFideId "4648358"]
[WhiteElo "2164"]
[BlackElo "2216"]
[Result "1-0"]
[Round "01"]
[TimeControl "180+2"]
[Date "2023.03.28"]
[WhiteClock "0:01:05"]
[BlackClock "0:00:02"]

1. d4 {[%clk 0:03:00]}  Nf6 {[%clk 0:02:58]} 2. Bf4 {[%clk 0:03:01]}  c5 {[%clk 0:02:56]} 3. e3 {[%clk 0:03:01]}  Qb6 {[%clk 0:02:52]} 4. Nc3 {[%clk 0:03:01]}  e6 {[%clk 0:02:47]} 5. Na4 {[%clk 0:02:38]}  Qa5+ {[%clk 0:02:46]} 6. c3 {[%clk 0:02:39]}  cxd4 {[%clk 0:02:44]} 7. exd4 {[%clk 0:02:36]}  d6 {[%clk 0:02:32]} 8. b4 {[%clk 0:02:15]}  Qc7 {[%clk 0:02:31]} 9. Rc1 {[%clk 0:02:15]}  Bd7 {[%clk 0:02:26]} 10. Nf3 {[%clk 0:02:14]}  b5 {[%clk 0:02:17]} 11. Nb2 {[%clk 0:02:14]}  a5 {[%clk 0:02:16]} 12. c4 {[%clk 0:02:15]}  axb4 {[%clk 0:02:10]} 13. cxb5 {[%clk 0:02:15]}  Qa5 {[%clk 0:02:10]} 14. Nc4 {[%clk 0:01:47]}  Qxa2 {[%clk 0:02:09]} 15. Nxd6+ {[%clk 0:01:41]}  Bxd6 {[%clk 0:02:00]} 16. Bxd6 {[%clk 0:01:42]}  b3 {[%clk 0:01:45]} 17. Bc4 {[%clk 0:01:41]}  Ne4 {[%clk 0:01:43]} 18. Bg3 {[%clk 0:01:37]}  Qa5+ {[%clk 0:01:34]} 19. Nd2 {[%clk 0:01:36]}  Bxb5 {[%clk 0:01:28]} 20. Bxb5+ {[%clk 0:01:33]}  Qxb5 {[%clk 0:01:25]} 21. Nxe4 {[%clk 0:01:31]}  O-O {[%clk 0:01:24]} 22. Qe2 {[%clk 0:01:31]}  b2 {[%clk 0:01:02]} 23. Rb1 {[%clk 0:01:30]}  Qa5+ {[%clk 0:00:57]} 24. Qd2 {[%clk 0:01:23]}  Qf5 {[%clk 0:00:47]} 25. f3 {[%clk 0:01:22]}  Nc6 {[%clk 0:00:44]} 26. O-O {[%clk 0:01:22]}  Qd5 {[%clk 0:00:42]} 27. Rxb2 {[%clk 0:01:20]}  Nxd4 {[%clk 0:00:37]} 28. Rd1 {[%clk 0:01:17]}  Rfd8 {[%clk 0:00:36]} 29. Kh1 {[%clk 0:01:14]}  Nf5 {[%clk 0:00:26]} 30. Qxd5 {[%clk 0:01:12]}  exd5 {[%clk 0:00:25]} 31. Nc5 {[%clk 0:01:09]}  d4 {[%clk 0:00:21]} 32. Bf2 {[%clk 0:01:07]}  Rac8 {[%clk 0:00:18]} 33. Ne4 {[%clk 0:01:07]}  d3 {[%clk 0:00:16]} 34. Rbd2 {[%clk 0:01:06]}  h5 {[%clk 0:00:11]} 35. h4 {[%clk 0:01:05]}  Kh7 {[%clk 0:00:03]} 36. Rxd3 {[%clk 0:01:05]}  Rxd3 {[%clk 0:00:03]} 37. Rxd3 {[%clk 0:01:06]}  f6 {[%clk 0:00:03]} 38. Rd5 {[%clk 0:01:06]}  Ne7 {[%clk 0:00:02]} 39. Rxh5+ {[%clk 0:01:05]} 1-0


[Site "https://www.chess.com"]

[Event "Titled Tuesday Blitz March 28 Late 2023"]
[White "Poliakova, Varvara"]
[Black "ilya2700"]
[WhiteFideId "13518313"]
[WhiteElo "2075"]
[BlackElo "2216"]
[Result "1-0"]
[Round "01"]
[TimeControl "180+2"]
[Date "2023.03.28"]
[WhiteClock "0:01:07"]
[BlackClock "0:00:07"]

1. e4 {[%clk 0:02:56]}  c5 {[%clk 0:02:58]} 2. Nf3 {[%clk 0:02:53]}  e6 {[%clk 0:02:58]} 3. d4 {[%clk 0:02:53]}  cxd4 {[%clk 0:02:58]} 4. Nxd4 {[%clk 0:02:54]}  Nf6 {[%clk 0:02:58]} 5. Nc3 {[%clk 0:02:54]}  Nc6 {[%clk 0:02:58]} 6. Ndb5 {[%clk 0:02:49]}  Bb4 {[%clk 0:02:58]} 7. a3 {[%clk 0:02:48]}  Bxc3+ {[%clk 0:02:57]} 8. Nxc3 {[%clk 0:02:48]}  d5 {[%clk 0:02:58]} 9. exd5 {[%clk 0:02:49]}  exd5 {[%clk 0:02:59]} 10. Qe2+ {[%clk 0:02:48]}  Be6 {[%clk 0:02:54]} 11. Bg5 {[%clk 0:02:47]}  O-O {[%clk 0:02:52]} 12. O-O-O {[%clk 0:02:43]}  h6 {[%clk 0:02:44]} 13. Bxf6 {[%clk 0:02:31]}  Qxf6 {[%clk 0:02:45]} 14. Nxd5 {[%clk 0:02:31]}  Bxd5 {[%clk 0:02:22]} 15. Rxd5 {[%clk 0:02:32]}  Rfe8 {[%clk 0:02:22]} 16. Qd2 {[%clk 0:02:30]}  Rad8 {[%clk 0:02:19]} 17. Bc4 {[%clk 0:02:26]}  Nd4 {[%clk 0:02:02]} 18. Kb1 {[%clk 0:02:12]}  Rxd5 {[%clk 0:01:53]} 19. Bxd5 {[%clk 0:02:13]}  Re2 {[%clk 0:01:53]} 20. Qd3 {[%clk 0:01:49]}  Rxc2 {[%clk 0:01:43]} 21. Re1 {[%clk 0:01:40]}  g6 {[%clk 0:01:19]} 22. Rd1 {[%clk 0:01:29]}  Qxf2 {[%clk 0:00:29]} 23. Qxd4 {[%clk 0:01:25]}  Qe2 {[%clk 0:00:29]} 24. Bxf7+ {[%clk 0:01:17]}  Kxf7 {[%clk 0:00:26]} 25. Qd7+ {[%clk 0:01:16]}  Kf6 {[%clk 0:00:20]} 26. Rd6+ {[%clk 0:01:15]}  Kg5 {[%clk 0:00:18]} 27. Rd5+ {[%clk 0:01:12]}  Kf4 {[%clk 0:00:09]} 28. Qd6+ {[%clk 0:01:07]}  Kg4 {[%clk 0:00:07]} 29. Qg3# {[%clk 0:01:07]} 1-0


[Site "https://www.chess.com"]

[Event "Titled Tuesday Blitz March 28 Late 2023"]
[White "ritanovikova"]
[Black "Atanasov, Anthony"]
[BlackFideId "2623897"]
[WhiteElo "2214"]
[BlackElo "2206"]
[Result "0-1"]
[Round "01"]
[TimeControl "180+2"]
[Date "2023.03.28"]
[WhiteClock "0:00:04"]
[BlackClock "0:00:04"]

1. e4 {[%clk 0:02:59]}  e5 {[%clk 0:03:00]} 2. Nf3 {[%clk 0:02:58]}  Nf6 {[%clk 0:03:00]} 3. Nxe5 {[%clk 0:02:58]}  d6 {[%clk 0:03:00]} 4. Nf3 {[%clk 0:02:58]}  Nxe4 {[%clk 0:03:01]} 5. d3 {[%clk 0:02:57]}  Nf6 {[%clk 0:03:01]} 6. d4 {[%clk 0:02:57]}  g6 {[%clk 0:03:01]} 7. h3 {[%clk 0:02:57]}  Bg7 {[%clk 0:03:01]} 8. Be2 {[%clk 0:02:56]}  O-O {[%clk 0:03:01]} 9. O-O {[%clk 0:02:56]}  c5 {[%clk 0:02:58]} 10. d5 {[%clk 0:02:52]}  h6 {[%clk 0:02:56]} 11. c4 {[%clk 0:02:51]}  a6 {[%clk 0:02:56]} 12. a4 {[%clk 0:02:50]}  a5 {[%clk 0:02:54]} 13. Nc3 {[%clk 0:02:50]}  Re8 {[%clk 0:02:53]} 14. Re1 {[%clk 0:02:47]}  Na6 {[%clk 0:02:52]} 15. Bf1 {[%clk 0:02:41]}  Rxe1 {[%clk 0:02:51]} 16. Nxe1 {[%clk 0:02:41]}  Nb4 {[%clk 0:02:52]} 17. Nc2 {[%clk 0:02:31]}  Bd7 {[%clk 0:02:43]} 18. Bf4 {[%clk 0:02:18]}  Qe7 {[%clk 0:02:33]} 19. Nxb4 {[%clk 0:02:13]}  axb4 {[%clk 0:02:34]} 20. Nb5 {[%clk 0:02:12]}  Ne4 {[%clk 0:02:16]} 21. Rb1 {[%clk 0:01:29]}  Qf6 {[%clk 0:02:04]} 22. Qf3 {[%clk 0:01:15]}  g5 {[%clk 0:01:34]} 23. Qxe4 {[%clk 0:01:10]}  Bf5 {[%clk 0:01:32]} 24. Qe2 {[%clk 0:00:41]}  gxf4 {[%clk 0:01:14]} 25. Re1 {[%clk 0:00:29]}  Qxb2 {[%clk 0:01:07]} 26. Qe7 {[%clk 0:00:27]}  Bf8 {[%clk 0:00:19]} 27. Qxb7 {[%clk 0:00:26]}  Rxa4 {[%clk 0:00:18]} 28. Qb8 {[%clk 0:00:20]}  Ra2 {[%clk 0:00:15]} 29. Re2 {[%clk 0:00:16]}  Qa1 {[%clk 0:00:03]} 30. Rxa2 {[%clk 0:00:16]}  Qxa2 {[%clk 0:00:04]} 31. Nxd6 {[%clk 0:00:16]}  Bg6 {[%clk 0:00:04]} 32. Ne8 {[%clk 0:00:12]}  Qa1 {[%clk 0:00:03]} 33. Qxf4 {[%clk 0:00:09]}  Bd3 {[%clk 0:00:03]} 34. Qg3+ {[%clk 0:00:09]}  Bg7 {[%clk 0:00:02]} 35. Qxd3 {[%clk 0:00:10]}  Bd4 {[%clk 0:00:02]} 36. Nd6 {[%clk 0:00:08]}  Qb2 {[%clk 0:00:02]} 37. Qe2 {[%clk 0:00:08]}  Qxe2 {[%clk 0:00:01]} 38. Bxe2 {[%clk 0:00:09]}  b3 {[%clk 0:00:02]} 39. Bd3 {[%clk 0:00:09]}  b2 {[%clk 0:00:03]} 40. Bb1 {[%clk 0:00:08]}  Kg7 {[%clk 0:00:02]} 41. Kf1 {[%clk 0:00:08]}  Kf6 {[%clk 0:00:03]} 42. Ke2 {[%clk 0:00:09]}  Ke5 {[%clk 0:00:04]} 43. f3 {[%clk 0:00:09]}  Kxd6 {[%clk 0:00:04]} 44. g4 {[%clk 0:00:08]}  Ke5 {[%clk 0:00:04]} 45. h4 {[%clk 0:00:06]}  Kf4 {[%clk 0:00:04]} 46. h5 {[%clk 0:00:04]}  Be5 {[%clk 0:00:04]} 47. Bc2 {[%clk 0:00:04]}  f6 {[%clk 0:00:04]} 48. Bb1 {[%clk 0:00:04]}  Bc7 {[%clk 0:00:04]} 49. Bc2 {[%clk 0:00:04]}  Ke5 {[%clk 0:00:05]} 50. Bb1 {[%clk 0:00:05]}  Kd4 {[%clk 0:00:05]} 51. Bd3 {[%clk 0:00:05]}  Kc3 {[%clk 0:00:05]} 52. Bb1 {[%clk 0:00:05]}  Bd6 {[%clk 0:00:04]} 53. Ke3 {[%clk 0:00:04]}  Kxc4 {[%clk 0:00:04]} 54. Ke4 {[%clk 0:00:04]}  Kb3 {[%clk 0:00:02]} 55. Kd3 {[%clk 0:00:04]}  c4+ {[%clk 0:00:03]} 56. Kd2 {[%clk 0:00:04]}  Bf4+ {[%clk 0:00:03]} 57. Kd1 {[%clk 0:00:04]}  c3 {[%clk 0:00:03]} 58. Bc2+ {[%clk 0:00:05]}  Ka2 {[%clk 0:00:04]} 59. d6 {[%clk 0:00:04]}  b1=Q+ {[%clk 0:00:04]} 60. Bxb1+ {[%clk 0:00:04]}  Kxb1 {[%clk 0:00:04]} 61. Ke2 {[%clk 0:00:04]}  c2 {[%clk 0:00:04]} 0-1


[Site "https://www.chess.com"]